bitfinex/quotes_ETHUSD_20251224
["timestamp","ask_amount","ask_price","bid_price","bid_amount"]
[1766587101043,0.09877552,2895.9,2894.8,0.0345447]
[1766587101260,3.55266758,2895.3,2893.8,0.18441578]
[1766587101542,0.09877552,2895.8,2894.0,0.9246]
[1766587101743,0.09877552,2896.2,2893.9,6.9455818]
[1766587101744,0.09877552,2896.4,2894.2,0.9246]
[1766587102052,0.09877552,2895.6,2894.4,0.9246]
[1766587102250,0.09877552,2895.0,2893.4,0.9246]
[1766587102459,0.03458044,2895.2,2893.8,3.45566383]
[1766587102614,0.03458044,2895.1,2894.0,0.9246]
[1766587102813,0.09877552,2896.2,2894.2,0.9246]
[1766587103008,0.09877552,2895.6,2894.4,0.9246]
[1766587103210,0.09877552,2895.4,2894.5,0.03454828]
[1766587103437,0.09877552,2895.2,2894.4,0.9246]
[1766587103610,0.09877552,2895.6,2894.5,0.03454828]
[1766587103817,0.09877552,2896.0,2894.7,0.9246]
[1766587104017,0.09877552,2896.0,2894.9,0.9246]
[1766587104218,0.09877552,2896.4,2895.0,0.95914231]
[1766587104419,3.55140605,2896.4,2895.0,0.9246]
[1766587104618,0.09877552,2896.0,2895.1,0.03454112]
[1766587105355,0.09877552,2896.3,2895.1,0.03454112]
[1766587105566,3.4524426,2896.5,2895.1,0.9246]
[1766587105719,0.09877552,2896.3,2895.1,4.41323461]
[1766587105921,0.09877552,2896.1,2894.7,3.45455503]
[1766587106150,0.09877552,2895.8,2894.8,0.9591447]
[1766587106359,0.09877552,2895.6,2894.9,0.0345435]
[1766587106562,0.09877552,2895.5,2894.9,0.0345435]
[1766587106858,0.09877552,2895.5,2891.3,1.75284933]
[1766587106859,0.02915205,2894.8,2894.0,0.9246]
[1766587107167,0.09877552,2894.5,2892.8,1.8076]
[1766587107326,0.14196236,2894.4,2892.9,7.09421598]
[1766587107521,3.59690984,2894.4,2893.0,0.9246]
[1766587107722,0.09877552,2894.2,2893.1,0.0173016]
[1766587107921,0.09877552,2893.8,2892.9,0.18076]
[1766587108143,0.09877552,2893.4,2892.1,0.9246]
[1766587108425,0.09877552,2893.6,2892.2,0.95917575]
[1766587108645,7.00868524,2894.4,2892.2,0.95917575]
[1766587108852,0.02915205,2894.8,2892.9,6.91342589]
[1766587109052,0.09877552,2894.7,2893.0,1.84216619]
[1766587109255,0.11206615,2894.7,2893.1,0.87555921]
[1766587109455,0.01329063,2894.7,2893.2,6.94732474]
[1766587109630,3.55242542,2895.5,2893.3,0.9246]
[1766587109835,0.09877552,2895.1,2893.4,0.03456141]
[1766587110145,0.09877552,2894.7,2893.4,0.03456141]
[1766587110341,0.09877552,2894.7,2892.4,0.9246]
[1766587110342,0.09877552,2894.2,2892.9,0.03456738]
[1766587110551,0.09877552,2893.8,2892.5,0.03457216]
[1766587110743,0.09877552,2893.8,2892.6,0.44164614]
[1766587110944,0.09877552,2893.8,2892.1,0.883]
[1766587110945,0.09877552,2893.4,2892.1,0.883]
[1766587111265,0.09877552,2893.1,2892.1,0.883]
[1766587111450,0.09877552,2892.7,2890.4,0.9517]
[1766587111651,0.09877552,2891.6,2889.4,0.002]
[1766587111851,0.09877552,2891.2,2889.5,3.46076198]
[1766587112056,0.09877552,2891.0,2890.1,3.46006622]
[1766587112372,0.09877552,2890.9,2889.6,0.4414462]
[1766587112601,0.09877552,2890.4,2889.4,0.002]
[1766587112785,0.09877552,2890.2,2889.4,0.002]
[1766587112984,0.09877552,2890.0,2889.4,0.002]
[1766587113199,0.09877552,2890.6,2889.4,0.002]
[1766587113339,0.09877552,2891.8,2889.7,0.9517]
[1766587113678,3.55551443,2892.9,2889.6,13.8427464]
[1766587113679,0.09877552,2892.9,2890.1,0.6886]
[1766587113978,0.09877552,2892.4,2890.3,0.6886]
[1766587114135,3.55553775,2892.9,2890.3,0.6886]
[1766587114340,1.87802128,2894.4,2890.6,0.6886]
[1766587114341,0.09877552,2893.2,2890.6,0.6886]
[1766587114573,0.09877552,2892.6,2890.6,0.6886]
[1766587115075,0.09877552,2892.8,2890.6,0.6886]
[1766587115239,0.09877552,2892.1,2889.7,0.6886]
[1766587115440,1.06767552,2893.0,2890.0,0.6886]
[1766587115441,0.09877552,2892.2,2890.0,0.6886]
[1766587115640,0.09877552,2892.2,2889.8,4.34241207]
[1766587115641,0.09877552,2891.6,2889.8,4.34241207]
[1766587115870,0.09877552,2891.4,2889.8,4.34241207]
[1766587116078,0.09877552,2891.4,2889.8,7.80285915]
[1766587116290,0.09877552,2891.4,2889.4,0.002]
[1766587116291,0.09877552,2890.7,2889.9,0.03460327]
[1766587116564,0.09877552,2890.9,2889.4,0.002]
[1766587116767,0.09877552,2891.7,2889.8,6.92089416]
[1766587116948,0.9136,2892.1,2889.9,0.91660327]
[1766587116949,0.09877552,2891.6,2889.9,0.91660327]
[1766587117250,0.09877552,2892.4,2890.0,0.6886]
[1766587117536,0.09877552,2892.2,2890.2,13.83987264]
[1766587117788,0.09877552,2893.1,2890.4,0.6886]
[1766587117938,0.09877552,2893.1,2890.3,0.03459848]
[1766587117939,0.86,2893.3,2890.8,6.43588179]
[1766587118140,0.09877552,2892.9,2890.9,1.52558818]
[1766587118338,0.09877552,2892.8,2891.0,0.0345901]
[1766587118581,0.09877552,2892.8,2890.9,0.882]
[1766587118582,0.09877552,2893.0,2890.9,0.882]
[1766587118894,0.09877552,2893.0,2890.2,3.45996816]
[1766587118895,0.09877552,2892.3,2890.2,3.45996816]
[1766587119096,0.09877552,2892.1,2890.4,0.882]
[1766587119284,0.09877552,2891.9,2890.4,0.882]
[1766587119482,7.01488312,2891.8,2890.4,0.882]
[1766587119795,0.09877552,2891.4,2890.5,0.03659609]
[1766587120196,3.4580538,2891.8,2890.5,0.03659609]
[1766587120399,1.7736,2892.5,2890.5,0.03659609]
[1766587120587,0.9136,2892.5,2890.5,10.41539468]
[1766587120791,0.001,2892.8,2890.5,13.84040765]
[1766587120971,0.9136,2893.3,2891.0,0.3923]
[1766587121305,6.53465731,2894.4,2890.9,6.53465731]
[1766587121306,0.9136,2894.1,2891.7,0.3923]
[1766587121501,0.09877552,2894.8,2892.1,6.43588179]
[1766587121701,0.09877552,2894.6,2892.1,6.43588179]
[1766587122001,0.9136,2895.0,2892.7,6.43588179]
[1766587122309,0.9136,2894.7,2892.8,0.882]
[1766587122615,0.09877552,2894.6,2892.8,0.91656858]
[1766587122796,0.09877552,2894.4,2892.7,0.882]
[1766587123102,0.09877552,2894.4,2892.8,0.03456858]
[1766587123302,1.01237552,2894.4,2892.8,0.03456858]
[1766587123603,0.09877552,2894.0,2892.7,0.882]
[1766587124124,0.29579062,2894.0,2892.7,0.882]
[1766587124417,0.29579062,2894.0,2892.8,0.03456858]
[1766587124576,0.9136,2894.1,2892.8,0.03456858]
[1766587125012,0.09877552,2892.4,2890.6,10.37846811]
[1766587125199,0.09877552,2892.5,2890.7,0.03459369]
[1766587125508,0.09877552,2891.9,2890.7,0.03459369]
[1766587125689,0.09877552,2891.7,2890.7,0.34961186]
[1766587125884,0.09877552,2891.7,2890.8,0.0345925]
[1766587126211,0.09877552,2891.7,2890.7,3.45932061]
[1766587126429,0.09877552,2891.9,2890.5,3.46158805]
[1766587126700,0.09877552,2891.9,2890.7,3.45934722]
[1766587126930,0.1333441,2891.8,2890.8,0.0345925]
[1766587127075,0.03456858,2891.8,2890.5,0.002]
[1766587127279,0.09877552,2891.7,2890.5,0.002]
[1766587127585,3.45853219,2891.4,2890.5,0.03459609]
[1766587127784,4.3171632,2891.8,2889.6,0.03460686]
[1766587128131,0.09877552,2892.3,2890.4,10.3791695]
[1766587128331,0.09877552,2892.4,2890.5,0.91459609]
[1766587128478,0.09877552,2892.0,2890.5,0.88]
[1766587128809,0.9136,2892.2,2890.5,0.002]
[1766587129023,0.859,2892.6,2890.5,0.002]
[1766587129314,0.09877552,2892.4,2890.6,0.72674028]
[1766587129472,3.457456,2892.3,2890.7,6.9187394]
[1766587129671,4.371056,2892.3,2890.6,4.15158592]
[1766587129978,5.230056,2892.3,2890.6,4.15158592]
[1766587130175,0.9136,2892.3,2890.7,0.03459369]
[1766587130379,0.87861142,2892.2,2890.8,0.41861796]
[1766587130635,0.001,2892.8,2891.5,0.09877552]
[1766587130781,0.001,2892.8,2891.6,1.01335844]
[1766587131115,3.45786042,2892.8,2891.1,0.09877552]
[1766587131292,3.4578584,2892.8,2891.2,1.01336323]
[1766587131615,0.001,2892.8,2891.3,4.33865181]
[1766587131829,0.001,2892.8,2891.6,0.09877552]
[1766587131980,0.9146,2892.8,2891.7,0.03458173]
[1766587132180,0.9146,2892.8,2891.2,4.43752361]
[1766587132380,0.9146,2892.8,2890.7,0.09877552]
[1766587132703,0.9146,2892.8,2891.3,0.09877552]
[1766587132887,0.9146,2892.8,2891.5,0.09877552]
[1766587133087,0.9146,2892.8,2891.5,0.97877552]
[1766587133414,0.9146,2892.8,2891.6,0.03458292]
[1766587133576,0.9136,2892.6,2891.2,0.03458771]
[1766587134178,0.9136,2892.6,2891.0,0.09877552]
[1766587134375,0.9136,2892.6,2891.4,0.09877552]
[1766587134581,0.9136,2892.6,2891.5,0.91458412]
[1766587134880,0.9136,2892.6,2891.5,0.03458412]
[1766587135079,0.9136,2892.6,2891.3,0.03458651]
[1766587135308,0.9136,2892.6,2891.3,0.13336203]
[1766587135514,3.45721694,2892.5,2891.3,0.03458651]
[1766587135813,0.9136,2892.6,2891.4,0.09877552]
[1766587136112,0.001,2892.8,2891.6,0.09877552]
[1766587136287,0.001,2892.8,2891.8,0.09877552]
[1766587136494,0.001,2892.8,2891.9,0.03457934]
[1766587136692,3.457919,2892.8,2891.8,0.879]
[1766587137009,0.001,2892.8,2891.7,0.879]
[1766587137401,0.001,2892.8,2891.8,0.09877552]
[1766587137637,0.9136,2893.5,2892.1,3.4576951]
[1766587137792,0.9136,2893.4,2892.2,0.34576951]
[1766587137987,0.9136,2893.4,2892.3,0.03457456]
[1766587138316,3.45549996,2894.0,2892.3,0.03457456]
[1766587138532,0.9136,2894.2,2892.4,0.09877552]
[1766587138818,4.3678374,2895.0,2893.0,0.09877552]
[1766587138980,0.43678374,2894.9,2893.4,0.09877552]
[1766587139308,0.001,2895.2,2893.5,0.03456022]
[1766587139510,0.001,2895.0,2893.8,6.91132766]
[1766587139708,0.001,2895.2,2893.9,0.09877552]
[1766587139910,0.001,2895.2,2894.0,0.91355425]
[1766587140316,0.9136,2896.6,2894.7,0.09877552]
[1766587140487,0.9136,2896.4,2894.8,0.0345447]
[1766587140682,0.9136,2896.4,2893.5,3.87911144]
[1766587140683,0.9136,2895.9,2892.9,0.3883]
[1766587140885,0.9136,2895.3,2893.0,0.879]
[1766587141239,0.9136,2895.1,2893.1,4.37002136]
[1766587141436,0.9567,2896.1,2893.8,6.91132766]
[1766587141726,0.9567,2895.9,2893.9,0.879]
[1766587141892,0.9567,2895.9,2894.0,0.03455425]
[1766587142297,0.9567,2895.9,2894.1,0.09877552]
[1766587142697,0.9567,2895.9,2894.2,0.03455186]
[1766587142953,0.9567,2895.9,2893.7,0.878]
[1766587143114,0.09877552,2896.0,2893.8,0.03455663]
[1766587143115,0.09877552,2895.4,2893.8,0.03455663]
[1766587143300,0.9567,2895.5,2893.6,0.09877552]
[1766587143501,0.858,2895.8,2893.6,0.09877552]
[1766587143502,0.9567,2895.3,2893.7,0.03455783]
[1766587143734,2.43387169,2895.2,2893.7,0.03455783]
[1766587144033,2.43387169,2895.2,2893.7,0.13333335]
[1766587144211,0.857,2895.6,2893.9,0.09877552]
[1766587144415,6.90736184,2895.5,2894.1,0.09877552]
[1766587144614,6.90736184,2895.5,2892.8,0.09877552]
[1766587144615,0.9567,2895.4,2892.8,0.09877552]
[1766587144825,0.9567,2895.4,2893.3,0.09877552]
[1766587145141,1.05547552,2895.2,2893.4,0.03456141]
[1766587145309,0.9567,2894.9,2892.9,0.03456738]
[1766587145498,0.09877552,2895.0,2891.5,3.4583044]
[1766587145499,0.9567,2894.2,2891.5,3.4583044]
[1766587145700,0.9567,2894.0,2891.6,0.878]
[1766587145894,0.9567,2894.0,2891.7,0.03458173]
[1766587146127,0.09877552,2893.9,2891.7,0.03458173]
[1766587146328,0.9567,2893.8,2891.7,0.91258173]
[1766587146518,0.9567,2893.6,2891.7,0.91258173]
[1766587146724,0.18137,2893.5,2891.8,0.09877552]
[1766587147030,0.9567,2893.6,2891.7,0.878]
[1766587147228,0.9567,2893.6,2891.8,0.03458053]
[1766587147606,0.9567,2893.6,2891.9,6.91586846]
[1766587147607,3.45602211,2893.5,2891.9,6.91586846]
[1766587147810,0.9567,2894.4,2892.2,0.09877552]
[1766587148008,0.9567,2894.4,2892.7,0.09877552]
[1766587148198,4.6020964,2895.1,2893.2,0.09877552]
[1766587148397,0.001,2895.2,2893.8,0.09877552]
[1766587148632,0.18135963,2897.0,2894.6,0.09877552]
[1766587148830,0.9567,2896.7,2895.1,0.09877552]
[1766587149033,0.9567,2896.7,2894.8,0.09877552]
[1766587149200,3.45239499,2896.6,2895.0,0.09877552]
[1766587149407,3.45204125,2896.9,2895.3,0.09877552]
[1766587149736,0.9567,2896.9,2895.4,0.03453754]
[1766587149922,0.9567,2896.8,2894.4,0.09877552]
[1766587150232,1.05547552,2896.8,2894.5,0.876]
[1766587150545,0.001,2897.0,2895.4,6.90749387]
[1766587150830,0.001,2897.0,2895.5,1.70006125]
[1766587151032,0.9577,2897.6,2895.9,0.09877552]
[1766587151330,0.9567,2897.5,2896.0,0.03453038]
[1766587151533,3.45137019,2897.4,2895.4,4.32975423]
[1766587151708,0.09877552,2896.7,2895.5,0.03453634]
[1766587151900,1.05547552,2896.7,2895.0,0.03454231]
[1766587152104,1.05547552,2896.7,2895.1,3.45402454]
[1766587152335,1.05547552,2896.3,2894.1,3.45522267]
[1766587152509,1.05547552,2896.3,2893.5,3.4559813]
[1766587152510,1.05547552,2896.1,2894.0,0.876]
[1766587152710,0.09877552,2895.7,2893.9,3.45553644]
[1766587152919,0.09877552,2895.5,2894.0,0.03455425]
[1766587153113,0.09877552,2895.5,2894.1,0.03455305]
[1766587153324,1.05547552,2895.5,2894.0,0.03455425]
[1766587153529,7.86516286,2895.0,2893.8,0.876]
[1766587153838,0.89516936,2894.9,2893.9,0.03455544]
[1766587154021,1.85186936,2894.9,2893.3,0.03456261]
[1766587154209,0.855,2895.2,2893.4,0.03456141]
[1766587154539,4.30902948,2895.2,2893.5,0.03456022]
[1766587154722,4.30902948,2895.2,2893.8,3.45566221]
[1766587154922,3.45377696,2895.4,2893.8,3.45566221]
[1766587154923,3.45366301,2895.5,2893.9,0.03455544]
[1766587155130,0.9567,2895.1,2893.4,0.002]
[1766587155646,3.45458942,2894.7,2893.4,0.002]
[1766587155845,3.45449143,2894.8,2893.4,0.002]
[1766587156019,6.90898286,2894.8,2893.4,0.002]
[1766587156217,3.45449143,2894.8,2893.4,0.002]
[1766587156467,0.34544914,2894.7,2893.4,0.002]
[1766587156742,1.30214914,2894.7,2893.4,0.03656141]
[1766587157057,0.9567,2894.7,2893.4,0.002]
[1766587157626,3.45413305,2895.1,2893.4,0.002]
[1766587158442,4.30887351,2895.3,2893.5,0.874]
[1766587158638,0.9567,2895.2,2893.4,0.002]
[1766587158801,0.9567,2895.2,2893.4,0.03656141]
[1766587159002,0.9567,2895.2,2893.5,0.03456022]
[1766587159229,1.05547552,2895.0,2893.4,0.002]
[1766587159634,0.9567,2894.8,2893.4,0.002]
[1766587159822,0.855,2894.7,2893.4,0.002]
[1766587160022,1.8117,2894.7,2893.4,0.002]
[1766587160246,0.9567,2894.3,2893.4,0.002]
[1766587160444,0.9567,2893.9,2892.3,0.03757456]
[1766587160647,0.9567,2893.7,2892.3,0.003]
[1766587160952,0.28982307,2893.6,2892.3,0.003]
[1766587161148,1.04604755,2893.6,2892.3,0.03757456]
[1766587161321,0.855,2893.6,2892.3,0.03757456]
[1766587161512,0.855,2893.6,2892.3,0.003]
[1766587161716,4.31090428,2893.6,2892.3,0.003]
[1766587161918,0.855,2893.6,2892.4,0.03457336]
[1766587162518,3.45559473,2893.9,2892.4,0.03457336]
[1766587162750,0.855,2894.1,2892.4,0.03457336]
[1766587162953,3.45498727,2894.4,2892.4,0.03457336]
[1766587163147,4.30998727,2894.4,2892.5,0.3873]
[1766587163352,0.9567,2895.2,2892.7,0.48607552]
[1766587163524,4.41078944,2895.2,2893.2,0.48607552]
[1766587163721,7.86468562,2895.2,2893.3,0.872]
[1766587163920,7.86468562,2895.2,2892.5,0.3873]
[1766587163921,0.9567,2895.1,2892.5,0.3873]
[1766587164169,0.09877552,2894.7,2892.6,0.03457097]
[1766587164366,0.09877552,2894.7,2892.5,1.2593]
[1766587164367,0.855,2894.6,2893.0,3.45650262]
[1766587164668,0.28982307,2894.5,2893.4,0.002]
[1766587164959,0.9567,2894.0,2892.3,0.003]
[1766587165159,0.855,2893.9,2892.4,0.03457336]
[1766587165323,0.855,2893.9,2892.5,0.03457216]
[1766587165724,0.855,2893.9,2892.5,3.49174954]
[1766587165930,3.45518623,2894.2,2892.6,0.34917495]
[1766587166125,4.31018623,2894.2,2892.7,0.03456977]
[1766587166326,0.001,2894.3,2892.7,0.03456977]
[1766587166526,0.9567,2894.8,2892.7,0.42386977]
[1766587166527,3.45458942,2894.7,2892.7,0.42386977]
[1766587166760,6.90917884,2894.7,2892.7,0.3893]
[1766587166935,0.9567,2894.5,2892.8,0.03456858]
[1766587167128,0.9567,2894.5,2892.6,0.34917495]
[1766587167129,0.9567,2894.5,2893.3,0.09877552]
[1766587167327,0.78658788,2894.6,2893.5,0.09877552]
[1766587167533,3.45423143,2895.0,2893.6,0.03455902]
[1766587167732,0.9567,2894.9,2893.3,0.09877552]
[1766587167935,0.9567,2894.9,2893.4,0.03456141]
[1766587168687,0.9567,2894.9,2892.8,0.09877552]
[1766587169012,0.9567,2894.9,2893.1,0.09877552]
[1766587169131,1.13193943,2894.8,2893.2,0.0345638]
[1766587169332,0.9567,2894.7,2893.2,0.0345638]
[1766587169576,0.9567,2894.7,2893.3,0.03456261]
[1766587169733,3.45470876,2894.6,2893.4,0.03456141]
[1766587170073,0.855,2894.9,2893.4,0.34908607]
[1766587170251,0.855,2894.8,2893.5,0.03456022]
[1766587170437,0.855,2894.8,2893.4,0.03456141]
[1766587170838,0.855,2894.8,2892.8,0.09877552]
[1766587170839,0.9567,2894.7,2892.8,0.09877552]
[1766587171160,0.9567,2894.7,2893.4,3.55490706]
[1766587171360,0.9567,2894.7,2893.0,0.09877552]
[1766587171531,0.18117,2894.6,2893.2,0.09877552]
[1766587171734,0.18117,2894.6,2893.3,0.03456261]
[1766587171735,6.90965624,2894.5,2893.3,0.03456261]
[1766587171964,6.90965624,2894.5,2893.4,0.03456141]
[1766587172142,4.49092624,2894.6,2893.2,0.09877552]
[1766587172341,4.30971554,2894.6,2893.3,0.03456261]
[1766587172550,0.855,2894.6,2893.3,3.49082362]
[1766587172736,0.9415,2894.5,2891.9,3.55662651]
[1766587173065,0.9415,2894.5,2893.1,0.002]
[1766587173251,0.9415,2894.3,2893.1,0.002]
[1766587173763,0.9415,2894.1,2893.1,0.002]
[1766587173975,0.9415,2893.9,2893.1,0.002]
[1766587174174,0.855,2894.0,2893.1,0.002]
[1766587174337,0.9425,2894.6,2893.1,0.002]
[1766587174678,0.001,2894.6,2893.2,0.09877552]
[1766587174838,0.001,2894.6,2893.3,0.03456261]
[1766587175336,4.39545405,2895.3,2893.3,0.03456261]
[1766587175459,0.4395454,2895.2,2894.1,0.09877552]
[1766587175676,0.9415,2895.3,2894.3,0.09877552]
[1766587175959,0.001,2895.5,2894.6,0.09877552]
[1766587176175,0.001,2896.7,2895.0,0.09877552]
[1766587176344,3.45320423,2896.7,2894.8,0.87]
[1766587176538,0.001,2896.7,2895.1,3.641]
[1766587176755,0.001,2896.7,2895.2,1.30706992]
[1766587177074,3.45324156,2896.7,2895.0,0.3843]
[1766587177273,0.001,2896.7,2895.3,0.87]
[1766587177479,0.001,2896.7,2895.4,0.03453754]
[1766587177980,0.001,2897.1,2895.5,0.03453634]
[1766587179670,0.001,2897.6,2895.9,0.48107552]
[1766587179875,0.001,2897.6,2896.0,10.35911601]
[1766587180045,6.90203988,2898.2,2896.2,0.3813]
[1766587180241,3.45151186,2898.2,2896.3,0.90352681]
[1766587180545,3.45151186,2898.2,2896.3,1.34907552]
[1766587180744,0.001,2898.2,2896.4,0.3813]
[1766587181051,0.001,2898.2,2896.5,0.90352442]
[1766587181251,0.001,2898.3,2896.7,0.3803]
[1766587181450,0.17961062,2899.3,2897.4,0.3793]
[1766587181672,5.46766733,2900.7,2897.8,0.09877552]
[1766587181673,0.9874,2899.5,2897.8,0.09877552]
[1766587181843,3.44898944,2899.4,2897.6,0.09877552]
[1766587182044,4.43631407,2899.5,2897.9,3.45075457]
[1766587182276,0.9874,2899.3,2898.0,0.03450655]
[1766587182576,0.9874,2899.0,2897.1,0.03451727]
[1766587182780,0.9874,2899.0,2896.9,0.3793]
[1766587182945,3.44887049,2899.5,2897.9,3.45071548]
[1766587183282,4.43604983,2899.7,2898.0,0.34507155]
[1766587183450,0.853,2899.9,2898.1,0.3783]
[1766587183648,0.9874,2900.4,2898.2,0.41280417]
[1766587183977,1e-08,2900.7,2898.6,0.3783]
[1766587184142,0.001,2899.5,2899.0,0.09877552]
[1766587184341,1e-08,2900.7,2898.1,0.09877552]
[1766587184587,0.9874,2900.1,2898.4,3.48465612]
[1766587184871,1.17144,2900.0,2898.4,0.03450179]
[1766587185096,1.17144,2900.0,2898.2,0.03450417]
[1766587185246,1.17144,2900.0,2898.1,0.03450536]
[1766587185442,1.17144,2900.0,2897.9,0.09877552]
[1766587185443,0.853,2899.9,2897.9,0.09877552]
[1766587185746,0.9874,2899.7,2897.6,0.96677552]
[1766587185948,6.89774098,2899.5,2897.8,0.09877552]
[1766587186175,3.44887049,2899.5,2897.9,0.03450774]
[1766587186372,3.44887049,2899.5,2897.8,3.5496693]
[1766587186584,0.09877552,2899.0,2897.6,0.3783]
[1766587186790,0.09877552,2899.0,2897.7,0.03451012]
[1766587186994,0.09877552,2898.8,2897.6,3.45104435]
[1766587187194,0.09877552,2898.8,2897.3,0.867]
[1766587187195,0.09877552,2898.8,2897.7,0.37961456]
[1766587187360,0.09877552,2898.6,2896.9,0.3783]
[1766587187563,0.09877552,2898.7,2897.0,3.45179533]
[1766587187898,10.34482758,2900.0,2898.0,0.3783]
[1766587188121,0.9874,2899.9,2898.0,0.3783]
[1766587188394,0.9874,2899.7,2898.1,0.03450536]
[1766587188709,1.08617552,2899.7,2898.2,0.03450417]
[1766587188864,1.08617552,2899.7,2897.2,0.3783]
[1766587188865,0.09877552,2899.7,2897.4,3.45125858]
[1766587189066,0.09877552,2899.7,2897.9,3.45077197]
[1766587189067,0.9874,2899.5,2897.9,3.45077197]
[1766587189276,0.9874,2899.5,2898.0,0.03450655]
[1766587189497,0.852,2899.4,2897.7,3.45094104]
[1766587189789,0.78839517,2899.8,2898.0,10.35196128]
[1766587189790,0.852,2899.7,2898.0,10.35196128]
[1766587189991,0.9874,2900.2,2898.3,0.09877552]
[1766587190203,3.44815922,2900.1,2898.3,0.09877552]
[1766587190364,7.88371844,2900.1,2898.3,0.09877552]
[1766587190564,0.17955251,2901.7,2899.2,0.3783]
[1766587190765,0.09877552,2900.3,2898.5,0.3783]
[1766587190999,0.852,2900.4,2898.5,0.3783]
[1766587191212,0.09877552,2900.1,2898.6,0.19452611]
[1766587191368,0.09877552,2899.9,2898.6,0.19452611]
[1766587191563,0.852,2899.8,2898.6,0.19452611]
[1766587191763,0.001,2900.1,2898.6,0.19452611]
[1766587191764,0.851,2899.9,2898.7,0.03449822]
[1766587192065,0.852,2900.1,2898.8,10.34910996]
[1766587192285,0.001,2900.1,2898.9,1.01405717]
[1766587192487,0.851,2900.0,2899.0,0.03449465]
[1766587192676,0.09877552,2899.9,2899.0,0.03449465]
[1766587192877,0.09877552,2899.9,2898.2,3.45039382]
[1766587192878,0.09877552,2899.7,2899.1,0.03449346]
[1766587193199,0.09877552,2900.0,2898.7,6.89963796]
[1766587193401,0.001,2900.1,2898.8,0.72446083]
[1766587193578,0.95077552,2900.1,2898.8,0.6899638]
[1766587193770,0.09977552,2900.1,2898.8,0.6899638]
[1766587194120,0.001,2900.1,2899.0,6.89893066]
[1766587194336,0.001,2900.1,2899.1,0.03449346]
[1766587194487,0.001,2900.1,2899.2,1.03828895]
[1766587194882,0.001,2900.1,2899.3,0.03449108]
[1766587195082,0.09877552,2901.0,2899.3,0.03449108]
[1766587195339,0.09877552,2900.8,2899.3,0.03449108]
[1766587195781,0.09877552,2901.1,2899.3,0.03449108]
[1766587195983,0.45330267,2901.0,2899.3,10.38181628]
[1766587196198,0.851,2900.9,2899.3,10.3473252]
[1766587196411,0.9874,2901.2,2899.5,0.3244032]
[1766587196623,0.09877552,2901.1,2899.6,0.90048751]
[1766587196803,1.8384,2901.2,2899.6,0.90048751]
[1766587197001,0.94877552,2901.1,2899.6,0.03448751]
[1766587197204,0.85,2901.0,2899.3,20.0313254]
[1766587197390,0.85,2900.9,2899.4,0.55987557]
[1766587197786,0.09877552,2901.1,2899.4,0.55987557]
[1766587198013,0.09877552,2901.1,2899.5,6.89774098]
[1766587198014,0.85,2901.0,2899.5,6.89774098]
[1766587198184,0.85,2900.9,2899.5,6.89774098]
[1766587198391,0.85,2900.8,2899.5,6.89774098]
[1766587198586,0.9874,2901.1,2899.6,0.77680018]
[1766587198825,0.001,2900.1,2899.6,0.77680018]
[1766587199189,0.001,2901.3,2899.6,0.77680018]
[1766587199386,0.09877552,2901.0,2899.6,0.74231267]
[1766587199586,0.09877552,2900.5,2898.5,3.4500024]
[1766587199926,0.09877552,2900.5,2898.6,0.866]
[1766587199927,1.08617552,2900.5,2898.6,0.866]
[1766587200097,1.08617552,2900.3,2898.7,3.44978061]
[1766587200288,0.9874,2899.9,2897.8,3.45086449]
[1766587200488,0.85,2899.8,2898.6,3.44992603]
[1766587200820,0.9874,2899.9,2898.8,3.44970332]
[1766587201029,0.9874,2899.9,2897.9,5.3688918]
[1766587201030,1.08617552,2899.7,2896.9,0.09877552]
[1766587201314,1.08617552,2899.7,2897.0,0.03451846]
[1766587201315,0.9647,2899.0,2897.0,0.03451846]
[1766587201538,0.98327136,2898.9,2896.5,0.866]
[1766587201715,1.8147,2898.8,2897.0,5.3688918]
[1766587202024,0.85,2899.0,2897.1,0.866]
[1766587202237,0.99919584,2898.9,2897.2,6.90321688]
[1766587202519,0.9647,2898.9,2897.3,0.03451489]
[1766587202882,0.849,2899.0,2897.2,10.35482532]
[1766587203111,0.849,2899.0,2897.3,1.13196008]
[1766587203428,0.9647,2898.9,2897.3,1.13196008]
[1766587203602,0.9647,2898.9,2897.4,0.0345137]
[1766587203603,0.849,2898.8,2897.4,0.0345137]
[1766587203798,0.849,2898.8,2896.7,3.45213703]
[1766587203799,0.03449584,2898.7,2897.1,3.45171796]
[1766587204014,1.06347552,2898.2,2896.6,0.62348918]
[1766587204220,1.06347552,2898.0,2896.7,3.48672627]
[1766587204387,0.849,2897.9,2896.7,6.9389305]
[1766587204594,1.06347552,2898.0,2896.7,6.90440846]
[1766587204927,1.09797136,2898.7,2896.8,0.03452085]
[1766587205102,1.06347552,2898.4,2896.7,6.90440846]
[1766587205426,1.06347552,2898.4,2896.8,0.7249617]
[1766587205427,0.9647,2898.1,2896.8,0.7249617]
[1766587205598,0.849,2898.0,2896.9,0.03451965]
[1766587205800,0.03449584,2898.6,2897.3,0.002]
[1766587206003,0.849,2898.5,2897.3,0.002]
[1766587206407,0.849,2898.4,2897.3,0.03651489]
[1766587206610,0.99919584,2898.7,2897.3,0.03651489]
[1766587206933,0.9647,2898.7,2897.3,0.03651489]
[1766587207111,0.09877552,2899.4,2897.3,0.03651489]
[1766587207112,0.9647,2899.4,2897.5,5.3688918]
[1766587207298,1.34177552,2901.0,2898.1,5.3688918]
[1766587207299,0.9647,2900.1,2898.1,5.3688918]
[1766587207498,1.34177552,2901.0,2898.1,5.3688918]
[1766587207499,0.9647,2900.7,2898.7,5.3688918]
[1766587207690,0.001,2901.0,2899.3,5.3688918]
[1766587207889,0.9647,2901.2,2899.4,0.90048989]
[1766587208114,0.9647,2901.2,2899.6,13.7950062]
[1766587208425,1.8137,2901.9,2899.9,5.3688918]
[1766587208600,0.99919584,2901.8,2900.0,0.866]
[1766587208922,1.8137,2901.7,2900.0,0.866]
[1766587209133,0.03449584,2901.6,2900.0,0.866]
[1766587209333,0.849,2901.5,2900.1,0.03448156]
[1766587209642,0.9647,2901.7,2900.1,0.03448156]
[1766587209815,0.9647,2902.1,2900.0,0.866]
[1766587210011,0.9647,2901.9,2900.1,0.65797074]
[1766587210232,0.9647,2901.9,2900.2,13.79215224]